Cogmind - Beta 11.1 @@@ ROGUE MODE // 2022.12.05 @ 15:13:25 Player: Pitt Result: Destroyed by P-60 Hacker with Shock Rifle Performance ------------- Evolutions (3) 1500 Regions Visited (6) 1200 Robots Destroyed (36) 180 Value Destroyed (1471) 1471 Prototype IDs (3) 60 Alien Tech Used (0) 0 Bonus (328) 328 TOTAL SCORE: 4739 Bonus ------- High Alert Combat Kills 28 Aligned with FarCom 300 Cogmind --------- Core Integrity 0/700 Matter 34/300 Energy 25/100 System Corruption 16% Temperature Cool (2) Movement Flying (40) Location -7/Factory Parts ------- > --- POWER (2) -------- (None) > --- PROPULSION (4) --- Antigrav System Xenon Bombardment Thruster > --- UTILITY (5) ------ Advanced Weight Redist. System > --- WEAPON (2) ------- (None) > --- INVENTORY (5) ---- VSS Leg Transmission Jammer Power Maul Axe Blade Saw Peak State ------------ > --- POWER ------------ Micro Nuclear Core Micro Nuclear Core > --- PROPULSION ------- Gravmag System Gravmag System Gravmag System Antigrav System > --- UTILITY ---------- Improved Heat Sink Large Storage Unit Advanced Weight Redist. System Matter Filter Hardened Medium Armor Plating > --- WEAPON ----------- Shock Rifle Gatling Laser > --- INVENTORY -------- VSS Leg Gravmag System Improved Heat Sink Armor Integrity Analyzer Transmission Jammer Transmission Jammer Reaction Control System Core Shielding Weapon Shielding Hardened Light Armor Plating Minigun Gauss Rifle Grenade Launcher Axe [Rating: 51] Favorites ----------- Power Ion Engine Engine Ion Engine Power Core Micro Nuclear Core Propulsion Aluminum Leg Treads Medium Treads Leg Aluminum Leg Hover Unit Gravmag System Flight Unit Surge Thruster Utility Core Analyzer Device Matter Filter Storage Large Storage Unit Processor Core Analyzer Protection Hardened Medium Armor Plating Weapon Assault Rifle Energy Gun Gatling Laser Ballistic Gun Assault Rifle Launcher Grenade Launcher Impact Weapon Power Maul Slashing Weapon Axe Build | -11 -10 -10 -10 -9 -8 -7 ------- Run | Scr Mat Min Exi Min Mat Fac Slots Evolved 6 | . . . . . 4 2 Power 1 | . . . . . 1 . Propulsion 2 | . . . . . 2 . Utility 3 | . . . . . 1 2 Weapon . | . . . . . . . Parts Attached 94 | 6 1 . 5 . 10 72 Power 9 | 1 . . . . 2 6 Engine 4 | 1 . . . . 2 1 Core 5 | . . . . . . 5 Reactor . | . . . . . . . Propulsion 24 | 2 . . . . 1 21 Treads 3 | . . . . . . 3 Leg 8 | 2 . . . . 1 5 Wheel . | . . . . . . . Hover 7 | . . . . . . 7 Flight 6 | . . . . . . 6 Utility 29 | 1 1 . 5 . 4 18 Device 14 | . . . 4 . 2 8 Storage 2 | 1 . . . . . 1 Processor 6 | . . . 1 . 2 3 Hackware . | . . . . . . . Protection 7 | . 1 . . . . 6 Artifact . | . . . . . . . Weapon 32 | 2 . . . . 3 27 Energy Gun 7 | . . . . . 2 5 Energy Cannon . | . . . . . . . Ballistic Gun 10 | 2 . . . . . 8 Ballistic Cannon . | . . . . . . . Launcher 6 | . . . . . . 6 Special Weapon . | . . . . . . . Impact Weapon 1 | . . . . . . 1 Slashing Weapon 8 | . . . . . 1 7 Piercing Weapon . | . . . . . . . Special Melee Weapon . | . . . . . . . Unidentified Prototypes 3 | . . . 3 . . . Corrupted Parts 1 | . . . . . . 1 System Corruption 1 | . . . . . . 1 Parts Lost 35 | . . . . . 2 33 Power 5 | . . . . . 1 4 Propulsion 14 | . . . . . 1 13 Utility 10 | . . . . . . 10 Weapon 6 | . . . . . . 6 Highest Loss Streak 13 | . . . . . 2 13 To Critical Strikes . | . . . . . . . Average Slot Usage (%) 90 | . 88 100 98 100 71 88 Engine 8 | . 14 14 14 14 17 4 Core 5 | . . . . . . 9 Treads 1 | . . . . . . 2 Leg 17 | . 28 28 28 28 19 11 Hover 4 | . . . . . . 7 Flight 1 | . . . . . . 2 Device 8 | . . . 8 14 3 9 Storage 9 | . 14 14 14 14 9 7 Processor 6 | . . . . . 4 10 Protection 5 | . 2 14 3 . . 6 Energy Gun 3 | . . . . . 4 4 Ballistic Gun 12 | . 28 28 28 28 7 3 Slashing Weapon 2 | . . . . . 5 3 Naked Turns . | . . . . . . . Heaviest Build 57 | 14 15 15 22 22 27 57 Greatest Support 68 | 20 20 20 20 20 35 68 Greatest Overweight (x) 8 | . . . 1 1 1 8 Average Overweight (x) . | . . . . 1 . 1 Largest Inventory Capacity 15 | 8 8 8 8 8 8 15 Average Capacity 11 | 6 8 8 8 8 8 14 Most Carried 15 | 4 6 7 8 8 8 15 Average Carried 10 | 2 4 6 7 8 7 13 Final Capacity 8 | 8 8 8 8 8 8 5 Final Carried 8 | 4 6 7 8 8 8 5 Class Distribution -------------------- 79% | Mutant 20% | Scavenger-Mutant Dominant Class ---------------- Mutant | -10/Materials Mutant | -10/Mines Mutant | -10/Exiles Mutant | -9/Mines Mutant | -8/Materials Mutant | -7/Factory Resources | -11 -10 -10 -10 -9 -8 -7 ----------- Run | Scr Mat Min Exi Min Mat Fac Matter Collected 1253 | 195 . . . . 95 963 Remotely . | . . . . . . . Salvage Created 1494 | 37 89 . . . 95 1273 Parts 79 | 1 3 . . . 9 66 Haulers Intercepted . | . . . . . . . Recyclers Shooed 1 | . . . . . 1 . Parts Field Recycled . | . . . . . . . Retrieved Matter . | . . . . . . . Parts Self-Destructed . | . . . . . . . Prevented . | . . . . . . . Kills | -11 -10 -10 -10 -9 -8 -7 ------- Run | Scr Mat Min Exi Min Mat Fac Combat Hostiles Destroyed 25 | . 2 . . . 2 21 Melee 5 | . . . . . 1 4 Guns 11 | . 2 . . . 1 8 AOE 7 | . . . . . . 7 Classes Destroyed 12 | 1 1 . . . 2 8 Worker 4 | 2 . . . . . 2 Builder 2 | . . . . . . 2 Tunneler 1 | . . . . . . 1 Recycler 3 | . . . . . . 3 Watcher 1 | . . . . . . 1 Cutter 3 | . . . . . . 3 Grunt 5 | . 2 . . . . 3 Brawler 1 | . . . . . . 1 Sentry 3 | . . . . . 1 2 Specialist 4 | . . . . . . 4 Hunter 1 | . . . . . 1 . Programmer 8 | . . . . . . 8 Best Kill Streak 5 | 2 1 . . . 1 5 Combat Bots Only 4 | . 1 . . . 1 4 Max Kills in Single Turn 3 | 1 1 . . . 1 3 Gunslinging . | . . . . . . . Exploded 2 | . . . . . . 2 Melee 1 | . . . . . 1 1 Uniques/NPCs Destroyed . | . . . . . . . Combat | -11 -10 -10 -10 -9 -8 -7 -------- Run | Scr Mat Min Exi Min Mat Fac Damage Taken 4381 | . 132 . . . 559 3690 Core 817 | . 12 . . . 102 703 Absorbed by Shields 28 | . . . . . . 28 Redirected to Shielding 100 | . . . . . . 100 Core Remaining (%) 92 | 100 . . . 95 81 . Volleys Fired 104 | 3 12 . . . 17 72 Largest 2 | 2 2 . . . 2 2 Hottest 130 | 40 40 . . . 56 130 Shots Fired 154 | 6 24 . . . 29 95 Gun 140 | 6 24 . . . 29 81 Cannon . | . . . . . . . Launcher 14 | . . . . . . 14 Special . | . . . . . . . Kinetic 82 | 6 24 . . . 24 28 Thermal 49 | . . . . . 5 44 Explosive 14 | . . . . . . 14 Electromagnetic 9 | . . . . . . 9 Robot Hit Streak 13 | 2 11 . . . 6 13 Robot Miss Streak 4 | . 2 . . . 2 4 Penetration Max 1 | . . . . . . 1 Secondary Targets . | . . . . . . . Shots Hit Robots 137 | 2 18 . . . 26 91 Core Hits 69 | 2 5 . . . 6 56 Critical Kills . | . . . . . . . Critical Parts Destroyed . | . . . . . . . Critical Strikes 2 | . . . . . . 2 Burn 1 | . . . . . . 1 Sever 1 | . . . . . . 1 Melee Attacks 102 | . . . . . 7 95 Impact 7 | . . . . . . 7 Slashing 95 | . . . . . 7 88 Piercing . | . . . . . . . Sneak Attacks 1 | . . . . . . 1 Combat Hostiles . | . . . . . . . Follow-up Attacks . | . . . . . . . Damage Inflicted 4184 | 33 232 . . . 406 3513 Guns 1813 | 33 232 . . . 190 1358 Cannons . | . . . . . . . Explosions 1244 | . . . . . . 1244 Melee 1115 | . . . . . 214 901 Ramming 12 | . . . . . 2 10 Kinetic 873 | 33 232 . . . 160 448 Thermal 1470 | . . . . . 30 1440 Explosive 626 | . . . . . . 626 Electromagnetic 88 | . . . . . . 88 Impact 133 | . . . . . . 133 Slashing 982 | . . . . . 214 768 Piercing . | . . . . . . . Highest Corruption 16 | . . . . . . 16 Average Corruption 6 | . . . . . . 6 Corruption Purged 5 | . . . . . . 5 Corruption Blocked . | . . . . . . . Effects 73 | . . . . . . 73 Message Errors 15 | . . . . . . 15 Matter Fused 24 | . . . . . . 24 Heat Flow Errors 9 | . . . . . . 9 Energy Discharges 9 | . . . . . . 9 Data Loss (minor) 5 | . . . . . . 5 Data Loss (major) 2 | . . . . . . 2 Misfires 5 | . . . . . . 5 Alerts 2 | . . . . . . 2 Misdirections 1 | . . . . . . 1 Weapon Failures 1 | . . . . . . 1 Overload Shots . | . . . . . . . Overflow Damage 462 | . . . . . . 462 Projectiles . | . . . . . . . Explosions 337 | . . . . . . 337 Melee 125 | . . . . . . 125 Knockbacks 1 | . . . . . . 1 Impact 1 | . . . . . . 1 Kinetic . | . . . . . . . Secondary . | . . . . . . . Self-Inflicted Damage 539 | . . . . . . 539 Shots 11 | . . . . . . 11 Rammed . | . . . . . . . Targets Rammed 6 | . . . . . 4 2 Kicked 6 | . . . . . 4 2 Crushed . | . . . . . . . Highest Temperature 409 | . 2 . . . 43 409 Average Temperature 127 | . 2 . . . 20 132 Received Heat Transfer 564 | . 72 . . . 180 312 Effects 7 | . . . . . . 7 Shutdowns 2 | . . . . . . 2 Energy Bleed 1 | . . . . . . 1 Interference 3 | . . . . . . 3 Matter Decay 1 | . . . . . . 1 Siege Activations . | . . . . . . . Robots Corrupted . | . . . . . . . Combat Hostiles . | . . . . . . . Parts Fried . | . . . . . . . Impact Corruptions 3 | . . . . . . 3 Robots Melted . | . . . . . . . Combat Hostiles . | . . . . . . . Parts Melted . | . . . . . . . Heat Transferred 2171 | . . . . . 74 2097 Parts Sabotaged . | . . . . . . . Parts Stolen . | . . . . . . . Parts Stripped . | . . . . . . . Power Chain Reactions 1 | . . . . . . 1 Missiles Intercepted . | . . . . . . . Alert | -11 -10 -10 -10 -9 -8 -7 ------- Run | Scr Mat Min Exi Min Mat Fac Peak Influence 443 | 10 89 34 . . 70 443 Initial 34 | . 6 34 . . . 31 Average 91 | . 46 34 . . 55 109 Maximum Alert Level 2 | . . . . . . 2 Low Security (%) 80 | 100 100 100 . 100 100 74 Level 1 19 | . . . . . . 25 Level 2 . | . . . . . . . Level 3 . | . . . . . . . Level 4 . | . . . . . . . Level 5 . | . . . . . . . High Security . | . . . . . . . Max Security . | . . . . . . . Squads Dispatched 14 | . . . . . 1 13 Investigation 1 | . . . . . 1 . Extermination 7 | . . . . . . 7 Reinforcement 6 | . . . . . . 6 Assault . | . . . . . . . Garrison . | . . . . . . . Intercept . | . . . . . . . Searches Triggered . | . . . . . . . Construction Impeded . | . . . . . . . Haulers Reinforced . | . . . . . . . Active Scanning Responses . | . . . . . . . Cargo Convoy Interrupts . | . . . . . . . Stealth | -11 -10 -10 -10 -9 -8 -7 --------- Run | Scr Mat Min Exi Min Mat Fac Distress Signals 2 | . . . . . 1 1 Communications Jammed . | . . . . . . . Distress Signals . | . . . . . . . Times Spotted 41 | . 4 . . . 7 30 Peak Tracking Total 5 | . 3 . . . 4 5 Tactical Retreats 1 | . . . . . . 1 Traps | -11 -10 -10 -10 -9 -8 -7 ------- Run | Scr Mat Min Exi Min Mat Fac Traps Triggered 1 | . . . . . 1 . Indirectly . | . . . . . . . Trap Hack Attempts . | . . . . . . . Triggered . | . . . . . . . Disarmed . | . . . . . . . Reprogrammed . | . . . . . . . Reused . | . . . . . . . Traps Extracted . | . . . . . . . Installed . | . . . . . . . Triggered . | . . . . . . . Machines | -11 -10 -10 -10 -9 -8 -7 ---------- Run | Scr Mat Min Exi Min Mat Fac Machines Disabled 15 | . . . . . . 15 Max in Single Turn 6 | . . . . . . 6 Machines Sabotaged . | . . . . . . . Garrisons Compromised . | . . . . . . . Overloaded Fab Kills . | . . . . . . . Hacking | -11 -10 -10 -10 -9 -8 -7 --------- Run | Scr Mat Min Exi Min Mat Fac Machines Accessed 8 | . . . 3 . . 5 Terminals 4 | . . . . . . 4 Fabricators 1 | . . . . . . 1 Repair Stations . | . . . . . . . Recycling Units . | . . . . . . . Scanalyzers . | . . . . . . . Garrison Access . | . . . . . . . Total Hacks 29 | . . . 21 . . 8 Successful 21 | . . . 21 . . . Failed 8 | . . . . . . 8 Catastrophic 2 | . . . . . . 2 Database Lockouts . | . . . . . . . Manual 5 | . . . 2 . . 3 Terminals 6 | . . . . . . 6 Fabricators 2 | . . . . . . 2 Repair Stations . | . . . . . . . Recycling Units . | . . . . . . . Scanalyzers . | . . . . . . . Garrison Access . | . . . . . . . Terminal Hacks 21 | . . . 21 . . . Record 21 | . . . 21 . . . Fabricator Hacks . | . . . . . . . Repair Station Hacks . | . . . . . . . Recycling Unit Hacks . | . . . . . . . Scanalyzer . | . . . . . . . Garrison Access Hacks . | . . . . . . . Unauthorized Hacks . | . . . . . . . Terminals . | . . . . . . . Fabricators . | . . . . . . . Repair Stations . | . . . . . . . Recycling Units . | . . . . . . . Scanalyzers . | . . . . . . . Garrison Access . | . . . . . . . Data Cores Recovered . | . . . . . . . Used . | . . . . . . . Hacking Detections 5 | . . . . . . 5 Full Trace Events . | . . . . . . . Feedback Events . | . . . . . . . Feedback Blocked . | . . . . . . . Robot Schematics Acquired . | . . . . . . . Robots Built . | . . . . . . . Authchips . | . . . . . . . Time . | . . . . . . . Total Robot Build Rating . | . . . . . . . Part Schematics Acquired . | . . . . . . . Parts Built . | . . . . . . . Authchips . | . . . . . . . Time . | . . . . . . . Total Part Build Rating . | . . . . . . . Parts Repaired . | . . . . . . . Time . | . . . . . . . Parts Recycled . | . . . . . . . Recycled Matter . | . . . . . . . Retrieved Matter . | . . . . . . . Retrieved Components . | . . . . . . . Parts Scanalyzed . | . . . . . . . Part Schematics Acquired . | . . . . . . . Parts Damaged . | . . . . . . . Bothacking | -11 -10 -10 -10 -9 -8 -7 ------------ Run | Scr Mat Min Exi Min Mat Fac Used RIF Installer . | . . . . . . . Robots Hacked . | . . . . . . . Non-combat . | . . . . . . . Combat . | . . . . . . . Robot Hacks Applied . | . . . . . . . Relay Couplers Released 4 | . . . . . . 4 Programmers 4 | . . . . . . 4 Fabnet Peak Effective % . | . . . . . . . Robots Rewired . | . . . . . . . Allies Hacked . | . . . . . . . Hacks Repelled . | . . . . . . . Allies | -11 -10 -10 -10 -9 -8 -7 -------- Run | Scr Mat Min Exi Min Mat Fac Total Allies . | . . . . . . . Largest Group . | . . . . . . . Highest-Rated Group . | . . . . . . . Highest-Rated Ally . | . . . . . . . Total Orders . | . . . . . . . Ally Attacks . | . . . . . . . Total Damage . | . . . . . . . Kills . | . . . . . . . Allies Corrupted . | . . . . . . . Allies Melted . | . . . . . . . Intel | -11 -10 -10 -10 -9 -8 -7 ------- Run | Scr Mat Min Exi Min Mat Fac Robot Analysis Total . | . . . . . . . Derelict Logs Recovered . | . . . . . . . Drone Launches . | . . . . . . . Drone Recoveries . | . . . . . . . Exploration | -11 -10 -10 -10 -9 -8 -7 ------------- Run | Scr Mat Min Exi Min Mat Fac Turns Passed 5103 | 148 187 86 1288 137 326 2931 Spaces Moved 2494 | 103 106 51 820 73 158 1183 Core 6 | 5 . . . . . 1 Treads 190 | . . . . . . 190 Legs 1810 | 98 106 51 820 73 158 504 Wheels . | . . . . . . . Hover 308 | . . . . . . 308 Flight 180 | . . . . . . 180 Fastest Speed 40 | 50 120 120 120 190 120 40 Average Speed 150 | 116 120 120 154 190 120 156 Slowest Speed 450 | 120 120 120 190 190 190 450 Overloaded Moves . | . . . . . . . Propulsion Burnouts . | . . . . . . . Robots Hopped . | . . . . . . . Cave-ins Triggered . | . . . . . . . Exploration Rate (%) 26 | 5 20 12 88 21 13 23 Regions Visited 6 Branch Regions 3 Pre-discovered Areas 1 | . . . 1 . . . Known Exits Taken . | . . . . . . . Unknown Exits Taken 6 | 1 1 1 1 1 1 . Scrap Searched . | . . . . . . . Spaces Dug 9 | . . . . . . 9 Terrain Destroyed 109 | . . . . . . 109 Melee 5 | . . . . . . 5 Projectile 2 | . . . . . . 2 AOE 102 | . . . . . . 102 Terrain Rammed . | . . . . . . . Walls Destroyed . | . . . . . . . Machines Disabled . | . . . . . . . Actions | -11 -10 -10 -10 -9 -8 -7 --------- Run | Scr Mat Min Exi Min Mat Fac Total 3486 | 122 141 76 842 72 250 1983 Wait 632 | 7 21 25 13 . 45 521 Move 2488 | 102 105 50 819 72 157 1183 Hop . | . . . . . . . Pick Up 27 | 4 2 1 . . 3 17 Fast Attach 46 | 6 1 . 5 . 6 28 Attach 20 | . . . . . 2 18 Detach 13 | . . . 2 . 2 9 Swap 28 | . . . . . 2 26 Drop 21 | . . . 3 . 5 13 Fire 104 | 3 12 . . . 17 72 Melee 101 | . . . . . 7 94 Ram . | . . . . . . . Kick 6 | . . . . . 4 2 Crush . | . . . . . . . Escape Stasis . | . . . . . . . Rewire . | . . . . . . . Trap . | . . . . . . . Miscellaneous . | . . . . . . . Route ------- -11/Scrapyard -10/Materials -10/Mines -10/Exiles -9/Mines -8/Materials (discovered 2 exits: *Fac / [*Sto]) -7/Factory (discovered 1 exit: [*Fac]) History --------- Turn | Location | Event 8 | -11/Scrapyard | Discovered new exit (range 15) 149 | -11/Scrapyard | Entered Materials 288 | -10/Materials | Discovered new exit (range 14) 319 | -10/Materials | Build established: Mutant 336 | -10/Materials | Entered Mines 367 | -10/Mines | YI-UF0 nonchalantly dropped a Grenade Launcher on the ground 418 | -10/Mines | Deemed a non-threat by the Exiles lab entrance 418 | -10/Mines | Discovered new exit (range 5) 422 | -10/Mines | Entered Exiles 451 | -10/Exiles | Met 8R-AWN 472 | -10/Exiles | Met EX-HEX 522 | -10/Exiles | Met EX-DEC 563 | -10/Exiles | Visited The Gauntlet 695 | -10/Exiles | Learned location of Zion (-6) 715 | -10/Exiles | Met EX-BIN 742 | -10/Exiles | Aligned with FarCom system 743 | -10/Exiles | Given EX-Vault access code 770 | -10/Exiles | Opened EX-Vault 779 | -10/Exiles | Found Prototype Device 779 | -10/Exiles | Identified Skeleton Box 784 | -10/Exiles | Found Prototype Device 784 | -10/Exiles | Identified Cloak of Protection 824 | -10/Exiles | Warned to stay clear of 0b10 Research branches 1156 | -10/Exiles | Discovered new exit (range 11) 1512 | -10/Exiles | Found Prototype Processor 1512 | -10/Exiles | Identified Modified TNC 1710 | -10/Exiles | Left Exiles lab with Cloak of Protection 1710 | -10/Exiles | Entered Mines 1819 | -9/Mines | Discovered new exit (range 8) 1847 | -9/Mines | Entered Materials 1847 | -8/Materials | Evolved 4 slots: Power x1, Propulsion x2, Utility x1 1908 | -8/Materials | Discovered new exit (range 14) 2161 | -8/Materials | Discovered new exit (range 4) 2173 | -8/Materials | Entered Factory 2173 | -7/Factory | Evolved 2 slots: Utility x2 2997 | -7/Factory | Lost 3 parts (1n2u) 3469 | -7/Factory | Lost 5 parts (1p2n1u1w) 3806 | -7/Factory | Discovered new exit (range 10) 3872 | -7/Factory | Lost 3 parts (2n1u) 4406 | -7/Factory | Build established: Scavenger-Mutant 4761 | -7/Factory | System corruption reached 10% 4777 | -7/Factory | Core integrity fell below 50% 4801 | -7/Factory | Lost 5 parts (3n2u) 5097 | -7/Factory | Core integrity fell below 20% 5104 | -7/Factory | Destroyed by P-60 Hacker with Shock Rifle Last Messages --------------- 05097_ U-05 Engineer lays Concrete. 05097_ K-01 Serf collects debris. 05098_ Core Shielding destroyed. 05098_ U-05 Engineer builds a Wall. 05098_ U-05 Engineer lays Concrete. 05100_ K-01 Serf collects debris. 05101_ U-05 Engineer lays Concrete. 05101_ U-05 Engineer builds a Wall. 05101_ Armor Integrity Analyzer destroyed. 05101_ Critical hit (Blast). 05101_ U-05 Engineer lays Concrete. 05102_ U-05 Engineer builds a Wall. 05102_ U-05 Engineer lays Concrete. 05102_ Dropped Lrg. Storage Unit. 05102_ U-05 Engineer destroyed. 05102_ U-05 Engineer lays Concrete. 05103_ U-05 Engineer builds a Wall. 05103_ U-05 Engineer lays Concrete. 05104_ K-01 Serf collects debris. 05104_ U-05 Engineer lays Concrete. Map ----- +----------------------------------------------------+ | ????????????????????? ???# ## #! | | ?????????????????????????#] # #! | | ?????????????????????????# = #T # ! | | ?????????????????????????# ## # | | ?????????????????????????#####+##### # """"" | | ???????????????????????? # """"" | | ?????????????????????? # """"" | | ????????????????? ???" """"""""" # """"" | | ???????????????# ??" # | | ???????????????# "F """"""""" ###+### | | ???????????????# """ # [ # | | ???????????????# "" """""" # "" # | | ???????????????# ^ #[T" # | | ???????????????# " # # | | ???????????????# # | | ????????????"??# ######## ### | | ???????????? ?# #??????# #?? | | ???????######;###k #??????# #?# | | ?????? #??????? ? | | ?????? #???????##? | | ?????? #?????????? | | ?????? #?????????? | | ????? ###+####### | | ?????? k | | ????############ h% ;;; | | ????# ##=uu ;@ ; | | ###?#! =*#### !p ##### | | !### / %[+%=uH != #???# | | # !%######u!!% #???# | | # *!%#= ! #!!####???# | | # !=#### ###??????# | | # ! !#??####????????# | | # #??????????????####### | | ## ^ ####?????????????????# | | #######+####"""""#####??????????# | | #???? " ############ | | #####?? # + | | # ####"################### | | ? "#?## = =#??????## | | ?? " " ??# [ #? ?# | | ######??? " ??# # # | | ??????? ?? " "#??# " " " " " # # | | ??????# "" " ??# " " " " " # # | | ??????# """ """#### " " " " " # # | | ??????# ## " " " " " # # | | ??????# ## " " " " " #? ?# | | ??????# ## " " " " " #?# #?# | | ??????# """ ## " " " " " #?# #?# | | ??????# """ ## " " " " " #?# #?# | | ???????##+#### """ % ## " " " " " #?# #?# | +----------------------------------------------------+ Best States ------------- Heat Dissipation 48 Energy Generation 26 Energy Capacity 415 Matter Stores 217 Matter Capacity 300 Sight Range 16 Terrain Scan Density 10 Cloak Strength 5 Additional Mass Support 9 Armor Coverage 375 Resistance: TH 15 Core Shielding 20 Weapon Shielding 33 Evasion (%) 57 Target Analysis 5 Core Analysis 9 Armor Integrity Analysis 30 Recoil Reduction 3 Matter Filtering 30 Item Schematics ----------------- None Robot Schematics ------------------ None Fabricated ------------ Nothing Alien Tech Used ----------------- None Achievements -------------- None Challenges ------------ None Game ------ Seed FlakBombSword Manual? 0 Play Time 00:45:25 Cumulative 141.6 hours Start 2022.12.05 @ 14:29:32 End 2022.12.05 @ 15:13:25 Sessions 1 Manual Loads 0 Difficulty Rogue Special Mode None Game No. 219 Rogue 219 Adventurer 0 Explorer 0 Win Type - Total 0 Types 0/0/0/0/0/0/0/0/0 Lore% 50 Gallery% 54 Achievement% 37 Wizard Run 0 Options --------- ASCII 0 Keyboard 0 Movement Mouse Keybinds 0 Fullscreen 1 Font 12/Smallcaps Map View 83x54 Tactical HUD 1 Map Filters NONE Filters NONE Steam 1 RUN: bf1ecdac-3517-43af-b3dc-7613060ba26e